bitfinex-derivatives/quotes_ETHF0:USTF0_20241230
["timestamp","ask_amount","ask_price","bid_price","bid_amount"]
[1735582889592,0.29441,3399.8,3399.4,3.8474]
[1735582889779,0.29441,3399.8,3399.5,0.29443]
[1735582889979,0.6584,3400.0,3399.4,3.8474]
[1735582890189,0.9528,3400.0,3399.7,0.29441]
[1735582890887,0.9528,3400.0,3399.4,3.8474]
[1735582891077,0.6584,3400.0,3399.4,3.8474]
[1735582891476,0.29438,3400.2,3399.9,0.29439]
[1735582891689,3.2078,3400.3,3400.2,0.29437]
[1735582891885,0.6488,3400.8,3400.0,3.2078]
[1735582891886,3.8566,3400.8,3400.0,3.2078]
[1735582892188,3.8566,3400.8,3400.1,0.66]
[1735582892378,4.15093,3400.8,3400.6,0.29434]
[1735582892883,3.2078,3400.8,3400.7,0.29433]
[1735582893077,0.6238,3401.1,3400.5,3.2078]
[1735582893285,0.9181,3401.1,3400.8,0.29432]
[1735582893483,0.24176878,3401.9,3401.0,3.2078]
[1735582893682,0.6238,3401.9,3401.0,3.2078]
[1735582893882,0.6238,3401.9,3401.5,0.29426]
[1735582894089,0.29424,3401.8,3401.5,0.29426]
[1735582894283,0.6238,3401.9,3401.1,1.2517]
[1735582894477,0.29426,3401.6,3401.3,0.29427]
[1735582894885,0.29426,3401.6,3401.3,0.29428]
[1735582895088,0.29426,3401.6,3401.4,0.29427]
[1735582895787,0.29424,3401.8,3401.4,0.29427]
[1735582895991,0.29426,3401.6,3401.4,0.29427]
[1735582896589,6.03399338,3401.7,3400.9,1.403]
[1735582896790,0.29425,3401.6,3401.1,0.29429]
[1735582897090,0.29428,3401.4,3401.2,0.29428]
[1735582897286,6.03399338,3401.7,3401.0,3.2078]
[1735582897481,0.29427,3401.5,3401.3,0.29428]
[1735582897682,0.29426,3401.6,3401.3,0.29428]
[1735582897989,3.2078,3401.7,3401.6,0.29425]
[1735582898682,3.2078,3401.7,3401.5,0.29426]
[1735582898990,3.50205,3401.7,3401.4,0.29427]
[1735582899190,3.50205,3401.7,3401.0,3.2078]
[1735582899191,2.82619338,3401.6,3401.0,3.2078]
[1735582899387,0.29426,3401.5,3401.0,3.5021]
[1735582899683,0.29428,3401.3,3401.0,3.5021]
[1735582900091,2.82619338,3401.6,3401.1,0.29429]
[1735582900092,0.29427,3401.4,3401.1,0.29429]
[1735582900687,2.82619338,3401.6,3401.1,0.29429]
[1735582900883,0.29428,3401.3,3401.0,3.2078]
[1735582901083,2.82619338,3401.6,3401.0,3.5021]
[1735582901283,0.29426,3401.5,3401.0,3.5021]
[1735582901486,0.29429,3401.3,3401.1,0.2943]
[1735582902483,3.80386532,3401.6,3400.9,3.2078]
[1735582902681,3.80386532,3401.6,3400.5,0.6774]
[1735582902682,0.29434,3400.6,3400.5,3.2078]
[1735582902894,2.82619338,3401.2,3400.5,3.2078]
[1735582902895,10.03527502,3401.2,3400.6,0.29434]
[1735582903182,0.29431,3400.9,3400.7,0.29433]
[1735582903780,0.29431,3400.9,3400.5,3.2078]
[1735582903983,1.2589,3401.0,3400.5,3.2078]
[1735582904188,3.2078,3400.7,3400.0,3.2078]
[1735582904591,0.29434,3400.6,3400.3,0.29436]
[1735582905695,0.29434,3400.6,3400.0,3.2078]
[1735582905889,0.29435,3400.5,3400.3,0.29436]
[1735582906193,1.2589,3401.0,3400.0,3.2078]
[1735582906390,0.29437,3400.3,3400.0,3.50219]
[1735582906693,0.29438,3400.1,3400.0,3.2078]
[1735582907286,0.29443,3399.6,3399.3,4.49092443]
[1735582907592,3.2078,3399.7,3399.3,4.49092443]
[1735582908087,0.29444,3399.4,3399.3,4.49092443]
[1735582908591,3.2078,3399.7,3398.7,8.32342443]
[1735582908891,1.2994,3400.0,3399.3,3.2078]
[1735582909096,7.60110707,3400.5,3400.2,0.29437]
[1735582909297,6.66115707,3400.5,3399.7,4.6098]
[1735582909499,6.66115707,3400.5,3400.4,0.29436]
[1735582909691,3.2078,3400.5,3400.4,0.29436]
[1735582910201,3.45335707,3400.6,3400.4,0.29436]
[1735582910392,3.45335707,3400.6,3400.1,3.2078]
[1735582910594,3.74769707,3400.6,3400.4,0.29436]
[1735582910794,0.29434,3400.6,3400.4,0.29436]
[1735582911699,0.29435,3400.5,3400.2,0.90237]
[1735582911895,0.29434,3400.6,3400.3,0.29437]
[1735582912196,0.29435,3400.5,3400.3,0.29437]
[1735582912392,0.29435,3400.5,3400.2,0.608]
[1735582912591,0.29435,3400.5,3400.3,0.29437]
[1735582912793,0.29435,3400.5,3400.2,0.90237]
[1735582912990,1.38139,3401.0,3400.1,3.2078]
[1735582912991,0.29437,3400.2,3400.1,3.2078]
[1735582913395,0.29434,3400.6,3400.2,0.29437]
[1735582913604,3.2078,3400.7,3400.2,0.29437]
[1735582913605,0.29436,3400.5,3400.2,0.29437]
[1735582914493,3.2078,3400.7,3400.3,0.29436]
[1735582914693,0.29435,3400.5,3400.3,0.29436]
[1735582915396,0.29434,3400.6,3400.4,0.29435]
[1735582915592,0.29435,3400.5,3400.2,0.29437]
[1735582916100,3.45335707,3400.9,3400.7,0.29432]
[1735582916299,3.45335707,3400.9,3400.2,0.73594]
[1735582916300,3.74767707,3400.9,3400.3,0.6136]
[1735582916497,3.45335707,3400.9,3400.8,0.29432]
[1735582916890,0.6456,3401.0,3400.4,0.6304]
[1735582916891,0.6456,3401.0,3400.4,1.36629]
[1735582917200,0.6456,3401.0,3400.9,0.29431]
[1735582917501,0.6456,3401.0,3400.8,0.29432]
[1735582918007,0.6456,3401.0,3400.7,0.29433]
[1735582918206,0.93991,3401.0,3400.7,0.29433]
[1735582918497,0.93991,3401.0,3400.3,1.2401]
[1735582918699,0.29431,3400.9,3400.7,0.29433]
[1735582919092,0.93991,3401.0,3400.7,0.29433]
[1735582919592,3.5021,3401.1,3400.9,0.29431]
[1735582919799,4.09925707,3401.5,3400.8,2.82619338]
[1735582919999,4.39352707,3401.5,3401.2,0.29428]
[1735582920199,4.09925707,3401.5,3401.4,0.29427]
[1735582920401,4.09925707,3401.5,3401.3,0.29428]
[1735582920999,4.39352707,3401.5,3401.3,0.29428]
[1735582921200,4.39352707,3401.5,3400.8,3.56199338]
[1735582921201,0.94017,3401.5,3400.8,3.56199338]
[1735582921395,3.2078,3401.6,3400.9,0.73578]
[1735582921597,3.45335707,3401.7,3401.6,0.29425]
[1735582922099,3.74760707,3401.7,3401.5,0.29426]
[1735582922290,5.20753967,3401.9,3401.6,0.29425]
[1735582922291,0.29424,3401.8,3401.6,0.29425]
[1735582922493,0.6459,3401.9,3401.3,3.9435]
[1735582922694,0.94013,3401.9,3401.3,3.2078]
[1735582922900,0.6459,3401.9,3401.7,0.29424]
[1735582923100,0.94013,3401.9,3401.7,0.29424]
[1735582923300,0.6459,3401.9,3401.7,0.29424]
[1735582923490,3.45335707,3402.1,3402.0,0.29422]
[1735582923799,3.45335707,3402.4,3402.3,0.29419]
[1735582924299,3.45335707,3402.4,3402.2,0.2942]
[1735582924502,3.45335707,3402.4,3402.1,0.6063]
[1735582924707,3.45335707,3402.4,3402.2,0.2942]
[1735582925203,3.50198,3402.5,3402.2,0.2942]
[1735582925401,0.6362,3402.8,3402.6,0.29416]
[1735582925593,4.38649707,3402.9,3402.2,3.2078]
[1735582925594,4.09235707,3402.9,3402.2,3.2078]
[1735582926102,0.29415,3402.8,3402.5,0.29417]
[1735582926303,4.38649707,3402.9,3402.6,0.29416]
[1735582926499,4.09235707,3402.9,3402.2,3.2078]
[1735582926701,0.29416,3402.7,3402.4,0.29418]
[1735582927098,0.93314,3402.9,3402.6,0.29416]
[1735582927297,0.639,3402.9,3402.2,3.2078]
[1735582927502,3.2078,3403.0,3402.1,1.34181]
[1735582927503,0.6473,3403.2,3402.9,0.29414]
[1735582927701,3.45335707,3403.3,3403.1,0.29412]
[1735582927904,3.827,3403.4,3403.2,0.29412]
[1735582928304,3.827,3403.4,3402.8,2.82619338]
[1735582928907,4.1211,3403.4,3403.0,0.29413]
[1735582929302,3.827,3403.4,3402.8,2.82619338]
[1735582929808,3.827,3403.4,3403.1,0.29412]
[1735582930504,3.827,3403.4,3402.8,2.82619338]
[1735582930810,4.18841707,3404.3,3403.3,3.2078]
[1735582930811,6.66115707,3404.3,3403.3,3.2078]
[1735582931103,6.66115707,3404.3,3403.6,2.82619338]
[1735582931301,6.95518707,3404.3,3403.9,0.29405]
[1735582931500,6.95518707,3404.3,3403.7,0.5789]
[1735582931501,6.66115707,3404.3,3403.7,0.5789]
[1735582931697,6.66115707,3404.3,3403.8,3.2078]
[1735582931911,6.66115707,3404.3,3404.2,0.29403]
[1735582932205,1.1781,3405.0,3404.4,0.294]
[1735582932206,3.50178,3404.8,3404.4,0.294]
[1735582932405,3.50178,3404.8,3404.0,2.82619338]
[1735582932718,3.50178,3404.8,3404.4,0.29401]
[1735582932719,3.2078,3404.8,3404.4,0.29401]
[1735582932908,3.2078,3404.8,3404.0,3.56131338]
[1735582933110,3.2078,3404.8,3404.6,0.29399]
[1735582933406,3.2078,3404.8,3404.5,0.294]
[1735582933709,3.2078,3404.8,3404.3,4.6088]
[1735582934205,0.29401,3404.4,3404.3,3.2078]
[1735582934517,0.29404,3404.1,3403.6,3.2078]
[1735582934700,3.2078,3404.4,3403.6,3.50187]
[1735582934701,0.29405,3404.0,3403.6,3.50187]
[1735582934905,1.1392,3404.3,3403.6,3.50187]
[1735582934906,1.1392,3404.3,3403.6,3.2078]
[1735582935408,7.3736077,3404.2,3403.6,3.2078]
[1735582935606,0.29407,3403.7,3403.6,3.2078]
[1735582935904,0.29406,3403.8,3403.6,3.2078]
[1735582936299,1.1392,3404.3,3403.6,3.2078]
[1735582936300,0.29407,3403.7,3403.6,3.2078]
[1735582936801,3.94292,3404.0,3403.2,1.401]
[1735582937007,3.2078,3403.6,3402.7,3.2078]
[1735582937198,6.1392,3404.3,3402.3,0.5882]
[1735582937199,3.2078,3403.2,3402.3,0.5882]
[1735582937401,0.5663,3403.5,3401.7,5.10282443]
[1735582937402,0.29422,3402.0,3401.8,0.5677]
[1735582937603,0.29423,3401.9,3401.7,7.69872443]
[1735582937904,3.2078,3402.3,3401.7,3.2078]
[1735582937905,0.29424,3401.8,3401.7,3.2078]
[1735582938108,3.2078,3402.3,3401.3,3.2078]
[1735582938109,0.29426,3401.6,3401.3,3.2078]
[1735582938313,2.82619338,3402.1,3401.3,3.2078]
[1735582938502,3.73170338,3402.1,3402.0,3.2078]
[1735582938805,0.9667578,3402.5,3402.0,3.2078]
[1735582938806,0.5663,3402.6,3402.0,3.2078]
[1735582939005,0.5663,3402.6,3402.0,4.6078]
[1735582939401,0.5663,3402.6,3401.4,2.82619338]
[1735582939402,3.2078,3402.3,3401.6,3.2078]
[1735582939605,0.29425,3401.7,3401.6,3.2078]
[1735582941013,0.6113,3402.2,3401.6,3.2078]
[1735582941315,0.5663,3402.6,3402.0,3.2078]
[1735582941616,0.5663,3402.6,3402.3,0.29419]
[1735582941809,0.5663,3402.6,3402.0,3.2078]
[1735582942005,2.29165244,3402.8,3402.5,3.2078]
[1735582942402,0.29416,3402.7,3402.1,3.2078]
[1735582942607,3.2078,3402.7,3401.9,2.0133]
[1735582942910,0.29422,3402.0,3401.9,1.4]
[1735582943612,0.29424,3401.8,3401.7,3.2078]
[1735582943808,3.2078,3402.3,3401.3,3.2078]
[1735582944016,3.2078,3401.8,3401.3,3.2078]
[1735582944207,3.2078,3401.8,3400.9,1.1958]
[1735582944208,0.29429,3401.2,3400.9,1.1958]
[1735582944408,3.2078,3401.4,3400.9,1.49011]
[1735582944710,3.2078,3401.4,3400.9,1.1958]
[1735582944912,3.50207,3401.4,3401.1,0.29429]
[1735582945506,0.29426,3401.5,3401.2,0.29428]
[1735582945711,3.2078,3402.0,3401.0,46.83399338]
[1735582945915,3.2078,3402.0,3401.0,44.0078]
[1735582946117,0.29428,3401.4,3401.1,0.2943]
[1735582946814,3.2078,3402.0,3401.0,44.0078]
[1735582947005,8.2078,3402.0,3401.0,44.0078]
[1735582947210,0.2943,3401.2,3401.0,44.0078]
[1735582947809,0.2943,3401.2,3400.6,2.82619338]
[1735582947810,3.2078,3401.4,3400.6,3.2078]
[1735582948115,3.2078,3400.8,3400.0,3.2078]
[1735582948310,0.29438,3400.2,3400.0,3.2078]
[1735582948815,1.1472,3400.7,3400.0,3.2078]
[1735582949014,0.29438,3400.1,3400.0,3.2078]
[1735582950013,7.25054305,3400.6,3399.6,3.2078]
[1735582950216,7.25054305,3400.6,3399.9,0.2944]
[1735582950517,0.29438,3400.2,3399.8,0.2944]
[1735582951218,0.29437,3400.3,3399.6,3.2078]
[1735582951417,0.29435,3400.5,3400.1,0.29438]
[1735582951613,0.29435,3400.5,3400.1,3.50218]
[1735582951922,0.5631,3400.7,3400.1,3.2078]
[1735582952118,0.2944,3400.0,3399.7,3.50221]
[1735582952308,0.2944,3400.0,3399.7,3.2078]
[1735582952510,0.2944,3399.9,3399.7,3.2078]
[1735582952816,0.29438,3400.1,3399.8,0.29441]
[1735582953320,3.2078,3400.4,3399.7,3.2078]
[1735582953522,0.29438,3400.1,3399.8,0.2944]
[1735582953921,0.29438,3400.1,3399.8,41.0944]
[1735582954424,0.29438,3400.1,3399.8,0.2944]
[1735582954816,0.29438,3400.2,3399.9,0.2944]
[1735582955118,0.6016,3400.6,3400.0,3.2078]
[1735582955318,0.29435,3400.5,3400.2,0.29437]
[1735582955519,0.29436,3400.4,3400.1,0.29438]
[1735582955715,0.6016,3400.6,3400.2,40.8]
[1735582956020,0.29434,3400.6,3400.2,40.8]
[1735582956219,0.5631,3400.7,3400.2,40.8]
[1735582956418,0.5631,3400.7,3400.0,3.2078]
[1735582956622,0.29438,3400.1,3400.0,3.2078]
[1735582957123,0.29438,3400.1,3399.8,41.09441]
[1735582957327,3.7709,3400.7,3400.0,0.29439]
[1735582957518,0.85744,3400.7,3400.1,3.2078]
[1735582957716,0.29432,3400.9,3400.1,3.2078]
[1735582958119,0.29432,3400.8,3400.5,0.29434]
[1735582958526,3.7736,3401.1,3400.6,0.29433]
[1735582958726,3.7736,3401.1,3400.1,3.2078]
[1735582959020,3.2078,3401.1,3400.2,4.22719338]
[1735582959224,0.5648,3401.4,3400.6,3.2078]
[1735582959724,0.5648,3401.4,3401.2,0.29428]
[1735582959915,3.50207,3401.5,3401.1,0.29429]
[1735582960421,3.2078,3401.5,3401.0,3.2078]
[1735582961028,0.29427,3401.5,3401.1,0.29429]
[1735582962330,0.29427,3401.5,3401.0,3.5021]
[1735582962530,0.29431,3400.9,3400.7,0.6055]
[1735582962738,0.29429,3401.2,3400.7,0.6055]
[1735582962929,0.5536,3401.7,3400.7,0.6055]
[1735582962930,7.22074755,3401.6,3401.2,0.29429]
[1735582963230,0.5536,3401.7,3401.1,3.2078]
[1735582963427,3.2078,3401.4,3400.7,0.6055]
[1735582964132,0.29427,3401.5,3401.1,0.2943]
[1735582964326,0.29428,3401.4,3401.0,3.5021]
[1735582964527,0.29427,3401.5,3401.1,0.29429]
[1735582964730,0.29426,3401.6,3401.2,0.29428]
[1735582964935,0.29426,3401.5,3401.1,0.29429]
[1735582965131,0.5536,3401.7,3401.0,3.2078]
[1735582965332,0.29427,3401.5,3401.2,0.29429]
[1735582966229,0.5945,3402.4,3401.4,6.03399338]
[1735582966635,0.29424,3401.9,3401.5,0.29426]
[1735582967531,0.29425,3401.7,3401.4,3.50207]
[1735582967731,0.29425,3401.7,3401.4,3.2078]
[1735582968128,3.2078,3402.2,3401.4,3.2078]
[1735582968335,0.29422,3402.0,3401.6,0.29425]
[1735582968536,3.2078,3402.2,3401.4,3.2078]
[1735582968840,0.29426,3401.5,3401.4,3.2078]
[1735582969031,6.03399338,3402.2,3401.4,3.2078]
[1735582969233,0.5642,3402.0,3401.4,6.03399338]
[1735582969429,3.2078,3402.2,3401.9,0.29422]
[1735582969829,3.502,3402.2,3401.9,0.29422]
[1735582970035,3.2078,3402.2,3401.4,6.62549338]
[1735582970236,0.29421,3402.1,3401.4,6.62549338]
[1735582970447,3.2078,3402.2,3401.9,0.29422]
[1735582970633,3.2078,3402.2,3401.4,3.7993]
[1735582970937,0.29421,3402.1,3401.8,0.29423]
[1735582971137,0.29421,3402.1,3401.7,0.29424]
[1735582971539,3.2078,3402.2,3401.4,6.62549338]
[1735582971840,0.29422,3402.1,3401.7,0.29424]
[1735582972037,0.29422,3402.1,3401.4,6.62549338]
[1735582972240,0.29422,3402.1,3401.7,0.29424]
[1735582972440,0.29422,3402.1,3401.5,0.29426]
[1735582972642,0.29422,3402.1,3401.7,0.29424]
[1735582972837,0.29422,3402.0,3401.7,0.29424]
[1735582974941,0.29423,3402.0,3401.6,0.86485]
[1735582975143,0.29423,3401.9,3401.6,0.86485]
[1735582975344,3.2078,3402.2,3401.6,0.5706]
[1735582975537,3.2078,3402.2,3401.8,0.29424]
[1735582975738,0.29422,3402.0,3401.7,0.29424]
[1735582978951,0.29425,3401.6,3401.4,3.50207]
[1735582979150,3.2078,3402.2,3401.4,3.2078]
[1735582979151,6.03399338,3402.2,3401.4,3.2078]
[1735582979346,0.29428,3401.3,3400.7,1.1423]
[1735582979645,0.2943,3401.1,3400.8,0.29432]
[1735582980052,3.2078,3401.3,3400.7,0.579]
[1735582980255,0.29432,3400.9,3400.7,0.87333]
[1735582980647,0.2943,3401.1,3400.8,0.29432]
[1735582980847,0.29431,3401.0,3400.8,0.29432]
[1735582981551,0.2943,3401.1,3400.9,0.29431]
[1735582981751,0.29431,3401.0,3400.8,0.29432]
[1735582981951,0.5958,3401.5,3400.7,0.579]
[1735582982150,5.49945244,3401.7,3401.6,0.29425]
[1735582982452,5.79370244,3401.7,3401.5,0.29426]
[1735582982758,2.29165244,3401.6,3401.5,0.29426]
[1735582983144,2.29165244,3401.6,3401.5,0.29424]
[1735582983347,2.29165244,3401.6,3401.5,0.29423]
[1735582983543,3.44915244,3402.2,3401.9,0.29419]
[1735582983747,3.74333244,3402.2,3402.0,0.29419]
[1735582984252,3.44915244,3402.2,3401.3,1.9697]
[1735582984546,0.29421,3401.9,3401.6,0.29422]
[1735582984749,0.29421,3401.8,3401.5,0.29423]
[1735582984944,0.29419,3402.1,3401.9,0.2942]
[1735582985144,1.1575,3402.2,3402.1,0.29418]
[1735582985351,0.23228376,3402.3,3402.2,0.29417]
[1735582985549,0.29416,3402.4,3402.2,0.29417]
[1735582985747,3.44235244,3402.7,3402.1,3.50198]
[1735582985948,0.29417,3402.3,3402.1,3.50198]
[1735582986149,7.19056537,3402.6,3402.1,3.2078]
[1735582986344,7.19056537,3402.6,3402.4,0.29415]
[1735582986549,7.19056537,3402.6,3402.1,3.2078]
[1735582986550,0.29414,3402.6,3402.3,0.29416]
[1735582986744,0.29414,3402.6,3402.2,0.6044]
[1735582986952,0.29414,3402.6,3402.4,0.29415]
[1735582987255,3.44235244,3402.7,3402.2,0.6044]
[1735582987451,3.44235244,3402.7,3402.3,0.29416]
[1735582987647,3.44235244,3402.7,3402.2,0.6044]
[1735582987854,6.59501083,3421.2,3402.5,3.2078]
[1735582987855,2.29165244,3403.2,3402.5,3.2078]
[1735582988056,2.29165244,3403.2,3402.9,3.2078]
[1735582988254,2.29165244,3403.2,3403.1,0.29409]
[1735582989551,0.29404,3403.8,3403.4,0.29406]
[1735582989753,0.29406,3403.6,3403.3,3.50187]
[1735582990055,0.29405,3403.7,3403.4,0.29407]
[1735582990356,0.29405,3403.7,3403.3,3.2078]
[1735582990357,0.5535,3404.0,3403.3,3.2078]
[1735582990858,2.82619338,3403.5,3403.0,0.5673]
[1735582991150,3.56135338,3403.5,3402.7,3.8072]
[1735582991354,0.5635,3403.4,3402.7,3.8072]
[1735582991556,0.2941,3403.0,3402.7,3.8072]
[1735582991855,0.29411,3403.0,3402.7,0.5994]
[1735582992157,3.2078,3403.2,3402.3,4.6078]
[1735582992158,0.29414,3402.6,3402.3,4.6078]
[1735582992452,0.5172,3402.9,3402.3,4.6078]
[1735582992653,0.29416,3402.4,3402.3,4.6078]
[1735582992851,0.29415,3402.5,3402.3,4.6078]
[1735582993259,0.5172,3402.9,3402.3,4.6078]
[1735582993958,0.29414,3402.6,3402.3,4.6078]
[1735582994164,0.5172,3402.9,3402.3,4.6078]
[1735582994652,0.29415,3402.5,3402.3,4.6078]
[1735582995160,0.29413,3402.7,3402.3,4.90196]
[1735582995352,0.29413,3402.8,3402.4,0.29415]
[1735582995659,0.29412,3402.9,3402.5,0.29414]
[1735582996251,0.29413,3402.8,3402.5,0.29414]
[1735582996457,0.29412,3402.9,3402.5,0.29414]
[1735582996657,0.29412,3402.8,3402.5,0.29414]
[1735582996858,0.29412,3402.8,3402.4,0.29416]
[1735582997562,2.29165244,3403.0,3402.3,4.6078]
[1735582998156,2.29165244,3403.0,3402.3,3.2078]
[1735582998157,0.29416,3402.4,3402.3,3.2078]
[1735582998364,5.49945244,3402.8,3401.9,4.295]
[1735582998554,0.29419,3402.0,3401.9,3.2078]
[1735582999154,3.7264,3402.3,3401.5,3.2078]
[1735582999356,6.03399338,3401.9,3401.1,1.1265]
[1735582999560,3.2078,3401.5,3400.7,0.29431]
[1735582999764,3.2078,3401.5,3400.6,1.1265]
[1735583000061,5.68682117,3401.8,3401.0,2.82619338]
[1735583000062,7.279246,3401.4,3401.0,2.82619338]
[1735583000259,0.5434,3401.8,3401.0,2.82619338]
[1735583000461,7.58152659,3401.5,3401.0,0.29429]
[1735583000658,0.29425,3401.5,3401.0,0.29429]
[1735583000859,0.5434,3401.8,3400.9,3.2078]
[1735583001264,0.29426,3401.3,3400.9,3.2078]
[1735583001463,7.41811217,3401.7,3400.9,3.2078]
[1735583001464,0.29427,3401.2,3400.9,3.2078]
[1735583001664,3.2078,3401.6,3400.9,3.2078]
[1735583001863,0.29429,3401.2,3400.9,3.2078]
[1735583002469,0.2943,3401.0,3400.9,3.2078]
[1735583003057,3.2078,3401.6,3400.9,3.2078]
[1735583003566,0.29428,3401.3,3400.9,3.2078]
[1735583003762,0.29431,3401.0,3400.9,3.2078]
[1735583004059,0.29431,3401.0,3400.2,2.82619338]
[1735583004060,3.2078,3401.1,3400.3,3.2078]
[1735583004463,0.29435,3400.6,3400.3,3.2078]
[1735583004864,0.29433,3400.8,3400.3,3.50216]
[1735583005172,0.5349,3401.0,3400.1,0.5684]
[1735583005659,0.29432,3400.9,3400.4,0.29435]
[1735583005862,0.29432,3400.9,3400.5,0.29435]
[1735583006061,0.5349,3401.0,3400.3,3.2078]
[1735583006265,0.29435,3400.6,3400.3,3.2078]
[1735583006463,0.29436,3400.4,3400.3,3.2078]
[1735583006664,0.29435,3400.5,3400.3,3.2078]
[1735583006871,6.76974338,3401.1,3400.3,3.2078]
[1735583007068,0.29435,3400.5,3400.3,3.2078]
[1735583007269,0.29434,3400.6,3400.3,3.2078]
[1735583007964,6.76974338,3401.1,3400.3,3.2078]
[1735583008165,0.29435,3400.6,3400.3,3.50217]
[1735583008363,0.29431,3401.0,3400.5,0.29434]
[1735583008562,0.29431,3401.0,3400.5,0.29435]
[1735583008771,3.2078,3401.1,3400.3,3.2078]
[1735583008959,0.29434,3400.6,3400.3,3.2078]
[1735583009160,0.29436,3400.4,3400.3,3.2078]
[1735583009365,6.03399338,3400.7,3400.1,0.5684]
[1735583009560,0.29437,3400.2,3400.1,0.5684]
[1735583009968,6.03399338,3400.7,3400.0,0.551]
[1735583010169,0.29438,3400.1,3400.0,0.551]
[1735583010570,3.2078,3400.3,3399.6,1.9346]
[1735583010771,0.5224,3400.5,3399.9,3.2078]
[1735583011063,0.29438,3400.2,3399.9,3.2078]
[1735583011462,0.5224,3400.5,3399.9,3.2078]
[1735583012073,0.29439,3400.0,3399.9,3.2078]
[1735583012272,0.29439,3400.0,3399.6,0.83002]
[1735583012273,0.29438,3400.2,3399.8,0.29441]
[1735583012470,0.5404,3400.4,3399.8,0.29441]
[1735583012678,0.29439,3400.1,3399.8,0.29441]
[1735583013267,0.5404,3400.4,3399.6,0.5356]
[1735583013474,0.29439,3400.1,3399.8,0.29441]
[1735583013780,0.29439,3400.0,3399.7,0.29441]
[1735583013979,0.29439,3400.1,3399.7,0.29442]
[1735583014174,0.29439,3400.1,3399.8,0.29441]
[1735583014175,0.29438,3400.1,3399.8,0.29441]
[1735583014678,0.5404,3400.4,3399.6,0.5356]
[1735583014884,0.29437,3400.3,3399.7,0.29442]
[1735583015081,0.5404,3400.4,3399.6,0.5356]
[1735583015377,3.2078,3400.7,3400.1,3.2078]
[1735583015775,3.2078,3400.7,3400.3,0.29437]
[1735583015974,2.29165244,3401.1,3400.6,3.2078]
[1735583016181,2.29165244,3401.1,3401.0,3.50211]
[1735583016775,0.29425,3401.6,3401.0,3.2078]
[1735583016980,0.29426,3401.5,3401.4,3.2078]
[1735583017280,2.29165244,3401.7,3401.4,3.2078]
[1735583017482,2.29165244,3401.7,3401.5,0.29425]
[1735583017780,2.58589244,3401.7,3401.4,3.2078]
[1735583018073,2.29165244,3401.7,3401.4,3.50206]
[1735583018278,2.58589244,3401.7,3401.4,3.50206]
[1735583018477,0.29424,3401.7,3401.4,3.50206]
[1735583018782,0.29424,3401.7,3401.4,3.2078]
[1735583019079,3.2078,3402.1,3401.4,3.2078]
[1735583019585,0.29422,3401.9,3401.7,0.29424]
[1735583019974,4.2637,3402.6,3401.8,3.2078]
[1735583020172,0.29419,3402.3,3402.0,0.29421]
[1735583020380,0.2942,3402.2,3401.9,0.29422]
[1735583020580,0.29421,3402.1,3401.8,3.50203]
[1735583020774,4.49966291,3402.6,3401.8,3.2078]
[1735583021384,4.2637,3402.6,3401.8,3.2078]
[1735583021585,0.29418,3402.4,3402.0,0.29421]
[1735583022281,0.29419,3402.3,3401.9,0.29422]
[1735583022880,0.29421,3402.1,3401.8,3.2078]
[1735583023086,0.2942,3402.2,3401.9,0.29422]
[1735583023585,4.2637,3402.6,3402.0,0.29421]
[1735583024084,0.29417,3402.5,3402.0,0.29421]
[1735583024282,0.29417,3402.5,3402.2,3.50199]
[1735583024476,3.2078,3403.0,3402.2,3.50199]
[1735583024477,3.2078,3403.0,3402.8,0.29414]
[1735583024679,2.29165244,3403.1,3403.0,0.29413]
[1735583025687,2.29165244,3403.1,3403.0,3.50193]
[1735583025880,5.70204959,3403.7,3403.0,3.50193]
[1735583025881,3.2078,3403.9,3403.0,3.2078]
[1735583026084,1.96995244,3404.1,3403.7,3.2078]
[1735583026283,1.44515244,3404.1,3403.7,3.2078]
[1735583026490,1.44515244,3404.1,3403.9,0.29405]
[1735583026684,1.44515244,3404.1,3403.8,0.29405]
[1735583027080,1.44515244,3404.1,3403.7,3.50186]
[1735583027081,1.73919244,3404.1,3403.7,3.50186]
[1735583027477,1.44515244,3404.1,3403.7,3.2078]
[1735583027682,0.29404,3404.0,3403.7,3.2078]
[1735583027884,0.561,3404.3,3403.4,0.549]
[1735583027885,3.2078,3404.1,3403.4,0.549]
[1735583028289,0.29408,3403.6,3403.4,0.549]
[1735583028488,3.2078,3404.1,3403.4,0.549]
[1735583028687,0.29408,3403.6,3403.4,0.549]
[1735583029293,3.2078,3404.1,3403.4,0.549]
[1735583029591,0.29408,3403.5,3403.4,0.549]
[1735583029893,3.2078,3404.1,3403.0,0.29412]
[1735583029894,0.29407,3403.6,3403.0,0.29412]
[1735583030189,0.2941,3403.3,3403.0,0.29412]
[1735583030978,0.29407,3403.6,3403.0,0.29412]
[1735583031186,0.29411,3403.3,3403.0,0.29412]
[1735583031386,0.29411,3403.2,3403.0,0.29412]
[1735583031588,0.2941,3403.3,3403.1,0.29411]
[1735583031785,3.2078,3403.7,3402.9,3.2078]
[1735583032093,3.2078,3403.7,3403.5,0.29408]
[1735583032094,3.50187,3403.7,3403.5,0.29408]
[1735583032288,3.2078,3403.7,3402.9,6.03399338]
[1735583032588,3.2078,3403.7,3403.4,0.29409]
[1735583032589,0.29408,3403.6,3403.4,0.29409]
[1735583032794,0.29405,3404.0,3403.4,3.2078]
[1735583033090,0.29404,3404.1,3403.9,0.29405]
[1735583033291,0.29404,3404.1,3403.8,0.29405]
[1735583033491,0.29403,3404.2,3403.9,0.29405]